Workbook

Sheet DATA
A2: Purchasing Analysis | W2: MAIN
C3: Date Of Month : | D3: 2018-04-01 | W3: Departments
B4: Search | C4: Suppliers | D4: Mohamed Ezz | G4: Stores | H4: Food Store | W4: Stores
C5: Invoices Amount | D5: Paid | E5: Paid Or Not | G5: Invoices Amount | H5: Paid | I5: Paid Or Not | W5: Suppliers
C6: =SUMIF('Purchasing Analysis'!$D$9:$D$208,$D4,'Purchasing Analysis'!$I$9:$I$208) -> 7800 | D6: =SUMIF('Purchasing Analysis'!$D$9:$D$208,$D4,'Purchasing Analysis'!$J$9:$J$208) -> 7800 | E6: =IF(OR(C6=0,D6=0),0,IF(C6=D6,"Paid",SUM(D6-C6))) -> Paid | G6: =SUMIF('Purchasing Analysis'!$D$9:$D$208,$H4,'Purchasing Analysis'!$I$9:$I$208) -> 0 | H6: =SUMIF('Purchasing Analysis'!$D$9:$D$208,$H4,'Purchasing Analysis'!$J$9:$J$208) -> 0 | I6: =IF(OR(G6=0,H6=0),0,IF(G6=H6,"Paid",SUM(H6-G6))) -> 0
C8: BY : Invoices | G8: BY : Petty Cash
A9: # | B9: Date | C9: Invoices Amount | D9: Paid | E9: Paid Or Not | G9: Petty Cash | H9: Paid | I9: Paid Or Not | W9: Departments | X9: Stores | Y9: Suppliers | Z9: Name Of Buyer | AA9: Remarks
A10: 1 | B10: =D3 -> 2018-04-01 | C10: =SUMIF('Purchasing Analysis'!$C$9:$C$1048576,$B10,'Purchasing Analysis'!$I$9:$I$1048576) -> 12800 | D10: =SUMIF('Purchasing Analysis'!$C$9:$C$1048576,$B10,'Purchasing Analysis'!$J$9:$J$1048576) -> 12800 | E10: =IF(AND(C10=0,D10=0),0,IF(C10=D10,"Paid",SUM(D10-C10))) -> Paid | G10: =SUMIF('Purchasing Analysis'!$C$9:$C$1048576,$B10,'Purchasing Analysis'!$F$9:$F$1048576) -> 35000 | H10: =SUMIF('Purchasing Analysis'!$C$9:$C$1048576,$B10,'Purchasing Analysis'!$J$9:$J$1048576) -> 12800 | I10: =IF(AND(G10=0,H10=0),0,IF(G10=H10,"Paid",SUM(H10-G10))) -> -22200 | S10: =D3 -> 2018-04-01 | T10: 2018-01-01 | U10: =(DATE(YEAR(T10),MONTH(T10)+1,1))-(DATE(YEAR(T10),MONTH(T10),1)) -> 31 | V10: =T10+U10-1 -> 2018-01-31
A11: =A10+1 -> 2 | B11: =B10+1 -> 2018-04-02 | C11: =SUMIF('Purchasing Analysis'!$C$9:$C$1048576,$B11,'Purchasing Analysis'!$I$9:$I$1048576) -> 0 | D11: =SUMIF('Purchasing Analysis'!$C$9:$C$1048576,$B11,'Purchasing Analysis'!$J$9:$J$1048576) -> 0 | E11: =IF(AND(C11=0,D11=0),0,IF(C11=D11,"Paid",SUM(D11-C11))) -> 0 | G11: =SUMIF('Purchasing Analysis'!$C$9:$C$1048576,$B11,'Purchasing Analysis'!$F$9:$F$1048576) -> 0 | H11: =SUMIF('Purchasing Analysis'!$C$9:$C$1048576,$B11,'Purchasing Analysis'!$J$9:$J$1048576) -> 0 | I11: =IF(AND(G11=0,H11=0),0,IF(G11=H11,"Paid",SUM(H11-G11))) -> 0 | S11: =S10+1 -> 2018-04-02 | T11: =T10+U10 -> 2018-02-01 | U11: =(DATE(YEAR(T11),MONTH(T11)+1,1))-(DATE(YEAR(T11),MONTH(T11),1)) -> 28 | V11: =T11+U11-1 -> 2018-02-28 | W11: Front Office | X11: Food Store | Y11: Mohamed Ezz | Z11: Hany | AA11: DONE
A12: =A11+1 -> 3 | B12: =B11+1 -> 2018-04-03 | C12: =SUMIF('Purchasing Analysis'!$C$9:$C$1048576,$B12,'Purchasing Analysis'!$I$9:$I$1048576) -> 0 | D12: =SUMIF('Purchasing Analysis'!$C$9:$C$1048576,$B12,'Purchasing Analysis'!$J$9:$J$1048576) -> 0 | E12: =IF(AND(C12=0,D12=0),0,IF(C12=D12,"Paid",SUM(D12-C12))) -> 0 | G12: =SUMIF('Purchasing Analysis'!$C$9:$C$1048576,$B12,'Purchasing Analysis'!$F$9:$F$1048576) -> 0 | H12: =SUMIF('Purchasing Analysis'!$C$9:$C$1048576,$B12,'Purchasing Analysis'!$J$9:$J$1048576) -> 0 | I12: =IF(AND(G12=0,H12=0),0,IF(G12=H12,"Paid",SUM(H12-G12))) -> 0 | S12: =S11+1 -> 2018-04-03 | T12: =T11+U11 -> 2018-03-01 | U12: =(DATE(YEAR(T12),MONTH(T12)+1,1))-(DATE(YEAR(T12),MONTH(T12),1)) -> 31 | V12: =T12+U12-1 -> 2018-03-31 | W12: Housekeeping | X12: Beverage Store | Z12: Ibrahim | AA12: HOLD
A13: 4 | B13: 2018-04-04 | C13: =SUMIF('Purchasing Analysis'!$C$9:$C$1048576,$B13,'Purchasing Analysis'!$I$9:$I$1048576) -> 0 | D13: =SUMIF('Purchasing Analysis'!$C$9:$C$1048576,$B13,'Purchasing Analysis'!$J$9:$J$1048576) -> 0 | E13: 0 | G13: =SUMIF('Purchasing Analysis'!$C$9:$C$1048576,$B13,'Purchasing Analysis'!$F$9:$F$1048576) -> 0 | H13: =SUMIF('Purchasing Analysis'!$C$9:$C$1048576,$B13,'Purchasing Analysis'!$J$9:$J$1048576) -> 0 | I13: 0 | S13: 2018-04-04 | T13: 2018-04-01 | U13: 30 | V13: 2018-04-30 | W13: Guest Relation | X13: General Store | Z13: Ahmed | AA13: X-(Wrong)-X
A14: 5 | B14: 2018-04-05 | C14: =SUMIF('Purchasing Analysis'!$C$9:$C$1048576,$B14,'Purchasing Analysis'!$I$9:$I$1048576) -> 0 | D14: =SUMIF('Purchasing Analysis'!$C$9:$C$1048576,$B14,'Purchasing Analysis'!$J$9:$J$1048576) -> 0 | E14: 0 | G14: =SUMIF('Purchasing Analysis'!$C$9:$C$1048576,$B14,'Purchasing Analysis'!$F$9:$F$1048576) -> 0 | H14: =SUMIF('Purchasing Analysis'!$C$9:$C$1048576,$B14,'Purchasing Analysis'!$J$9:$J$1048576) -> 0 | I14: 0 | S14: 2018-04-05 | T14: 2018-05-01 | U14: 31 | V14: 2018-05-31 | W14: F&B Service | X14: Tobacoo Store
A15: 6 | B15: 2018-04-06 | C15: =SUMIF('Purchasing Analysis'!$C$9:$C$1048576,$B15,'Purchasing Analysis'!$I$9:$I$1048576) -> 0 | D15: =SUMIF('Purchasing Analysis'!$C$9:$C$1048576,$B15,'Purchasing Analysis'!$J$9:$J$1048576) -> 0 | E15: 0 | G15: =SUMIF('Purchasing Analysis'!$C$9:$C$1048576,$B15,'Purchasing Analysis'!$F$9:$F$1048576) -> 0 | H15: =SUMIF('Purchasing Analysis'!$C$9:$C$1048576,$B15,'Purchasing Analysis'!$J$9:$J$1048576) -> 0 | I15: 0 | S15: 2018-04-06 | T15: 2018-06-01 | U15: 30 | V15: 2018-06-30 | W15: Kitchen | X15: Engineering Store
A16: 7 | B16: 2018-04-07 | C16: =SUMIF('Purchasing Analysis'!$C$9:$C$1048576,$B16,'Purchasing Analysis'!$I$9:$I$1048576) -> 0 | D16: =SUMIF('Purchasing Analysis'!$C$9:$C$1048576,$B16,'Purchasing Analysis'!$J$9:$J$1048576) -> 0 | E16: 0 | G16: =SUMIF('Purchasing Analysis'!$C$9:$C$1048576,$B16,'Purchasing Analysis'!$F$9:$F$1048576) -> 0 | H16: =SUMIF('Purchasing Analysis'!$C$9:$C$1048576,$B16,'Purchasing Analysis'!$J$9:$J$1048576) -> 0 | I16: 0 | S16: 2018-04-07 | T16: 2018-07-01 | U16: 31 | V16: 2018-07-31 | W16: Stewarding | X16: Solar & Gas Store
A17: 8 | B17: 2018-04-08 | C17: =SUMIF('Purchasing Analysis'!$C$9:$C$1048576,$B17,'Purchasing Analysis'!$I$9:$I$1048576) -> 0 | D17: =SUMIF('Purchasing Analysis'!$C$9:$C$1048576,$B17,'Purchasing Analysis'!$J$9:$J$1048576) -> 0 | E17: 0 | G17: =SUMIF('Purchasing Analysis'!$C$9:$C$1048576,$B17,'Purchasing Analysis'!$F$9:$F$1048576) -> 0 | H17: =SUMIF('Purchasing Analysis'!$C$9:$C$1048576,$B17,'Purchasing Analysis'!$J$9:$J$1048576) -> 0 | I17: 0 | S17: 2018-04-08 | T17: 2018-08-01 | U17: 31 | V17: 2018-08-31 | W17: Ex. Office | X17: SOE Store
A18: 9 | B18: 2018-04-09 | C18: =SUMIF('Purchasing Analysis'!$C$9:$C$1048576,$B18,'Purchasing Analysis'!$I$9:$I$1048576) -> 0 | D18: =SUMIF('Purchasing Analysis'!$C$9:$C$1048576,$B18,'Purchasing Analysis'!$J$9:$J$1048576) -> 0 | E18: 0 | G18: =SUMIF('Purchasing Analysis'!$C$9:$C$1048576,$B18,'Purchasing Analysis'!$F$9:$F$1048576) -> 0 | H18: =SUMIF('Purchasing Analysis'!$C$9:$C$1048576,$B18,'Purchasing Analysis'!$J$9:$J$1048576) -> 0 | I18: 0 | S18: 2018-04-09 | T18: 2018-09-01 | U18: 30 | V18: 2018-09-30 | W18: Finance
A19: 10 | B19: 2018-04-10 | C19: =SUMIF('Purchasing Analysis'!$C$9:$C$1048576,$B19,'Purchasing Analysis'!$I$9:$I$1048576) -> 0 | D19: =SUMIF('Purchasing Analysis'!$C$9:$C$1048576,$B19,'Purchasing Analysis'!$J$9:$J$1048576) -> 0 | E19: 0 | G19: =SUMIF('Purchasing Analysis'!$C$9:$C$1048576,$B19,'Purchasing Analysis'!$F$9:$F$1048576) -> 0 | H19: =SUMIF('Purchasing Analysis'!$C$9:$C$1048576,$B19,'Purchasing Analysis'!$J$9:$J$1048576) -> 0 | I19: 0 | S19: 2018-04-10 | T19: 2018-10-01 | U19: 31 | V19: 2018-10-31 | W19: Engineering
A20: 11 | B20: 2018-04-11 | C20: =SUMIF('Purchasing Analysis'!$C$9:$C$1048576,$B20,'Purchasing Analysis'!$I$9:$I$1048576) -> 7800 | D20: =SUMIF('Purchasing Analysis'!$C$9:$C$1048576,$B20,'Purchasing Analysis'!$J$9:$J$1048576) -> 7800 | E20: Paid | G20: =SUMIF('Purchasing Analysis'!$C$9:$C$1048576,$B20,'Purchasing Analysis'!$F$9:$F$1048576) -> 10600 | H20: =SUMIF('Purchasing Analysis'!$C$9:$C$1048576,$B20,'Purchasing Analysis'!$J$9:$J$1048576) -> 7800 | I20: -2800 | S20: 2018-04-11 | T20: 2018-11-01 | U20: 30 | V20: 2018-11-30 | W20: S&M Dept.
A21: 12 | B21: 2018-04-12 | C21: =SUMIF('Purchasing Analysis'!$C$9:$C$1048576,$B21,'Purchasing Analysis'!$I$9:$I$1048576) -> 0 | D21: =SUMIF('Purchasing Analysis'!$C$9:$C$1048576,$B21,'Purchasing Analysis'!$J$9:$J$1048576) -> 0 | E21: 0 | G21: =SUMIF('Purchasing Analysis'!$C$9:$C$1048576,$B21,'Purchasing Analysis'!$F$9:$F$1048576) -> 0 | H21: =SUMIF('Purchasing Analysis'!$C$9:$C$1048576,$B21,'Purchasing Analysis'!$J$9:$J$1048576) -> 0 | I21: 0 | S21: 2018-04-12 | T21: 2018-12-01 | U21: 31 | V21: 2018-12-31 | W21: Tel.& B.C
A22: 13 | B22: 2018-04-13 | C22: =SUMIF('Purchasing Analysis'!$C$9:$C$1048576,$B22,'Purchasing Analysis'!$I$9:$I$1048576) -> 0 | D22: =SUMIF('Purchasing Analysis'!$C$9:$C$1048576,$B22,'Purchasing Analysis'!$J$9:$J$1048576) -> 0 | E22: 0 | G22: =SUMIF('Purchasing Analysis'!$C$9:$C$1048576,$B22,'Purchasing Analysis'!$F$9:$F$1048576) -> 0 | H22: =SUMIF('Purchasing Analysis'!$C$9:$C$1048576,$B22,'Purchasing Analysis'!$J$9:$J$1048576) -> 0 | I22: 0 | S22: 2018-04-13 | U22: =SUM(U10:U21) -> 365 | W22: EDP ( I.T )
A23: 14 | B23: 2018-04-14 | C23: =SUMIF('Purchasing Analysis'!$C$9:$C$1048576,$B23,'Purchasing Analysis'!$I$9:$I$1048576) -> 0 | D23: =SUMIF('Purchasing Analysis'!$C$9:$C$1048576,$B23,'Purchasing Analysis'!$J$9:$J$1048576) -> 0 | E23: 0 | G23: =SUMIF('Purchasing Analysis'!$C$9:$C$1048576,$B23,'Purchasing Analysis'!$F$9:$F$1048576) -> 0 | H23: =SUMIF('Purchasing Analysis'!$C$9:$C$1048576,$B23,'Purchasing Analysis'!$J$9:$J$1048576) -> 0 | I23: 0 | S23: 2018-04-14 | W23: Recreation
A24: 15 | B24: 2018-04-15 | C24: =SUMIF('Purchasing Analysis'!$C$9:$C$1048576,$B24,'Purchasing Analysis'!$I$9:$I$1048576) -> 0 | D24: =SUMIF('Purchasing Analysis'!$C$9:$C$1048576,$B24,'Purchasing Analysis'!$J$9:$J$1048576) -> 0 | E24: 0 | G24: =SUMIF('Purchasing Analysis'!$C$9:$C$1048576,$B24,'Purchasing Analysis'!$F$9:$F$1048576) -> 0 | H24: =SUMIF('Purchasing Analysis'!$C$9:$C$1048576,$B24,'Purchasing Analysis'!$J$9:$J$1048576) -> 0 | I24: 0 | S24: 2018-04-15 | W24: Animation
A25: 16 | B25: 2018-04-16 | C25: =SUMIF('Purchasing Analysis'!$C$9:$C$1048576,$B25,'Purchasing Analysis'!$I$9:$I$1048576) -> 0 | D25: =SUMIF('Purchasing Analysis'!$C$9:$C$1048576,$B25,'Purchasing Analysis'!$J$9:$J$1048576) -> 0 | E25: 0 | G25: =SUMIF('Purchasing Analysis'!$C$9:$C$1048576,$B25,'Purchasing Analysis'!$F$9:$F$1048576) -> 0 | H25: =SUMIF('Purchasing Analysis'!$C$9:$C$1048576,$B25,'Purchasing Analysis'!$J$9:$J$1048576) -> 0 | I25: 0 | S25: 2018-04-16 | W25: HR Dept.
A26: 17 | B26: 2018-04-17 | C26: =SUMIF('Purchasing Analysis'!$C$9:$C$1048576,$B26,'Purchasing Analysis'!$I$9:$I$1048576) -> 0 | D26: =SUMIF('Purchasing Analysis'!$C$9:$C$1048576,$B26,'Purchasing Analysis'!$J$9:$J$1048576) -> 0 | E26: 0 | G26: =SUMIF('Purchasing Analysis'!$C$9:$C$1048576,$B26,'Purchasing Analysis'!$F$9:$F$1048576) -> 0 | H26: =SUMIF('Purchasing Analysis'!$C$9:$C$1048576,$B26,'Purchasing Analysis'!$J$9:$J$1048576) -> 0 | I26: 0 | S26: 2018-04-17 | W26: Laundry
A27: 18 | B27: 2018-04-18 | C27: =SUMIF('Purchasing Analysis'!$C$9:$C$1048576,$B27,'Purchasing Analysis'!$I$9:$I$1048576) -> 0 | D27: =SUMIF('Purchasing Analysis'!$C$9:$C$1048576,$B27,'Purchasing Analysis'!$J$9:$J$1048576) -> 0 | E27: 0 | G27: =SUMIF('Purchasing Analysis'!$C$9:$C$1048576,$B27,'Purchasing Analysis'!$F$9:$F$1048576) -> 0 | H27: =SUMIF('Purchasing Analysis'!$C$9:$C$1048576,$B27,'Purchasing Analysis'!$J$9:$J$1048576) -> 0 | I27: 0 | S27: 2018-04-18 | W27: Staff Cafeteria
A28: 19 | B28: 2018-04-19 | C28: =SUMIF('Purchasing Analysis'!$C$9:$C$1048576,$B28,'Purchasing Analysis'!$I$9:$I$1048576) -> 0 | D28: =SUMIF('Purchasing Analysis'!$C$9:$C$1048576,$B28,'Purchasing Analysis'!$J$9:$J$1048576) -> 0 | E28: 0 | G28: =SUMIF('Purchasing Analysis'!$C$9:$C$1048576,$B28,'Purchasing Analysis'!$F$9:$F$1048576) -> 0 | H28: =SUMIF('Purchasing Analysis'!$C$9:$C$1048576,$B28,'Purchasing Analysis'!$J$9:$J$1048576) -> 0 | I28: 0 | S28: 2018-04-19 | W28: Staff Housing
A29: 20 | B29: 2018-04-20 | C29: =SUMIF('Purchasing Analysis'!$C$9:$C$1048576,$B29,'Purchasing Analysis'!$I$9:$I$1048576) -> 0 | D29: =SUMIF('Purchasing Analysis'!$C$9:$C$1048576,$B29,'Purchasing Analysis'!$J$9:$J$1048576) -> 0 | E29: 0 | G29: =SUMIF('Purchasing Analysis'!$C$9:$C$1048576,$B29,'Purchasing Analysis'!$F$9:$F$1048576) -> 0 | H29: =SUMIF('Purchasing Analysis'!$C$9:$C$1048576,$B29,'Purchasing Analysis'!$J$9:$J$1048576) -> 0 | I29: 0 | S29: 2018-04-20
A30: 21 | B30: 2018-04-21 | C30: =SUMIF('Purchasing Analysis'!$C$9:$C$1048576,$B30,'Purchasing Analysis'!$I$9:$I$1048576) -> 0 | D30: =SUMIF('Purchasing Analysis'!$C$9:$C$1048576,$B30,'Purchasing Analysis'!$J$9:$J$1048576) -> 0 | E30: 0 | G30: =SUMIF('Purchasing Analysis'!$C$9:$C$1048576,$B30,'Purchasing Analysis'!$F$9:$F$1048576) -> 0 | H30: =SUMIF('Purchasing Analysis'!$C$9:$C$1048576,$B30,'Purchasing Analysis'!$J$9:$J$1048576) -> 0 | I30: 0 | S30: 2018-04-21
A31: 22 | B31: 2018-04-22 | C31: =SUMIF('Purchasing Analysis'!$C$9:$C$1048576,$B31,'Purchasing Analysis'!$I$9:$I$1048576) -> 0 | D31: =SUMIF('Purchasing Analysis'!$C$9:$C$1048576,$B31,'Purchasing Analysis'!$J$9:$J$1048576) -> 0 | E31: 0 | G31: =SUMIF('Purchasing Analysis'!$C$9:$C$1048576,$B31,'Purchasing Analysis'!$F$9:$F$1048576) -> 0 | H31: =SUMIF('Purchasing Analysis'!$C$9:$C$1048576,$B31,'Purchasing Analysis'!$J$9:$J$1048576) -> 0 | I31: 0 | S31: 2018-04-22
A32: 23 | B32: 2018-04-23 | C32: =SUMIF('Purchasing Analysis'!$C$9:$C$1048576,$B32,'Purchasing Analysis'!$I$9:$I$1048576) -> 0 | D32: =SUMIF('Purchasing Analysis'!$C$9:$C$1048576,$B32,'Purchasing Analysis'!$J$9:$J$1048576) -> 0 | E32: 0 | G32: =SUMIF('Purchasing Analysis'!$C$9:$C$1048576,$B32,'Purchasing Analysis'!$F$9:$F$1048576) -> 0 | H32: =SUMIF('Purchasing Analysis'!$C$9:$C$1048576,$B32,'Purchasing Analysis'!$J$9:$J$1048576) -> 0 | I32: 0 | S32: 2018-04-23
A33: 24 | B33: 2018-04-24 | C33: =SUMIF('Purchasing Analysis'!$C$9:$C$1048576,$B33,'Purchasing Analysis'!$I$9:$I$1048576) -> 0 | D33: =SUMIF('Purchasing Analysis'!$C$9:$C$1048576,$B33,'Purchasing Analysis'!$J$9:$J$1048576) -> 0 | E33: 0 | G33: =SUMIF('Purchasing Analysis'!$C$9:$C$1048576,$B33,'Purchasing Analysis'!$F$9:$F$1048576) -> 0 | H33: =SUMIF('Purchasing Analysis'!$C$9:$C$1048576,$B33,'Purchasing Analysis'!$J$9:$J$1048576) -> 0 | I33: 0 | S33: 2018-04-24
A34: 25 | B34: 2018-04-25 | C34: =SUMIF('Purchasing Analysis'!$C$9:$C$1048576,$B34,'Purchasing Analysis'!$I$9:$I$1048576) -> 0 | D34: =SUMIF('Purchasing Analysis'!$C$9:$C$1048576,$B34,'Purchasing Analysis'!$J$9:$J$1048576) -> 0 | E34: 0 | G34: =SUMIF('Purchasing Analysis'!$C$9:$C$1048576,$B34,'Purchasing Analysis'!$F$9:$F$1048576) -> 0 | H34: =SUMIF('Purchasing Analysis'!$C$9:$C$1048576,$B34,'Purchasing Analysis'!$J$9:$J$1048576) -> 0 | I34: 0 | S34: 2018-04-25
A35: 26 | B35: 2018-04-26 | C35: =SUMIF('Purchasing Analysis'!$C$9:$C$1048576,$B35,'Purchasing Analysis'!$I$9:$I$1048576) -> 0 | D35: =SUMIF('Purchasing Analysis'!$C$9:$C$1048576,$B35,'Purchasing Analysis'!$J$9:$J$1048576) -> 0 | E35: 0 | G35: =SUMIF('Purchasing Analysis'!$C$9:$C$1048576,$B35,'Purchasing Analysis'!$F$9:$F$1048576) -> 0 | H35: =SUMIF('Purchasing Analysis'!$C$9:$C$1048576,$B35,'Purchasing Analysis'!$J$9:$J$1048576) -> 0 | I35: 0 | S35: 2018-04-26
A36: 27 | B36: 2018-04-27 | C36: =SUMIF('Purchasing Analysis'!$C$9:$C$1048576,$B36,'Purchasing Analysis'!$I$9:$I$1048576) -> 0 | D36: =SUMIF('Purchasing Analysis'!$C$9:$C$1048576,$B36,'Purchasing Analysis'!$J$9:$J$1048576) -> 0 | E36: 0 | G36: =SUMIF('Purchasing Analysis'!$C$9:$C$1048576,$B36,'Purchasing Analysis'!$F$9:$F$1048576) -> 0 | H36: =SUMIF('Purchasing Analysis'!$C$9:$C$1048576,$B36,'Purchasing Analysis'!$J$9:$J$1048576) -> 0 | I36: 0 | S36: 2018-04-27
A37: 28 | B37: =B36+1 -> 2018-04-28 | C37: =SUMIF('Purchasing Analysis'!$C$9:$C$1048576,$B37,'Purchasing Analysis'!$I$9:$I$1048576) -> 0 | D37: =SUMIF('Purchasing Analysis'!$C$9:$C$1048576,$B37,'Purchasing Analysis'!$J$9:$J$1048576) -> 0 | E37: 0 | G37: =SUMIF('Purchasing Analysis'!$C$9:$C$1048576,$B37,'Purchasing Analysis'!$F$9:$F$1048576) -> 0 | H37: =SUMIF('Purchasing Analysis'!$C$9:$C$1048576,$B37,'Purchasing Analysis'!$J$9:$J$1048576) -> 0 | I37: 0 | S37: 2018-04-28
A38: 29 | B38: 2018-04-29 | C38: =SUMIF('Purchasing Analysis'!$C$9:$C$1048576,$B38,'Purchasing Analysis'!$I$9:$I$1048576) -> 0 | D38: =SUMIF('Purchasing Analysis'!$C$9:$C$1048576,$B38,'Purchasing Analysis'!$J$9:$J$1048576) -> 0 | E38: 0 | G38: =SUMIF('Purchasing Analysis'!$C$9:$C$1048576,$B38,'Purchasing Analysis'!$F$9:$F$1048576) -> 0 | H38: =SUMIF('Purchasing Analysis'!$C$9:$C$1048576,$B38,'Purchasing Analysis'!$J$9:$J$1048576) -> 0 | I38: 0 | S38: 2018-04-29
A39: 30 | B39: 2018-04-30 | C39: =SUMIF('Purchasing Analysis'!$C$9:$C$1048576,$B39,'Purchasing Analysis'!$I$9:$I$1048576) -> 0 | D39: =SUMIF('Purchasing Analysis'!$C$9:$C$1048576,$B39,'Purchasing Analysis'!$J$9:$J$1048576) -> 0 | E39: 0 | G39: =SUMIF('Purchasing Analysis'!$C$9:$C$1048576,$B39,'Purchasing Analysis'!$F$9:$F$1048576) -> 0 | H39: =SUMIF('Purchasing Analysis'!$C$9:$C$1048576,$B39,'Purchasing Analysis'!$J$9:$J$1048576) -> 0 | I39: 0 | S39: 2018-04-30
A40: 31 | B40: 2018-05-01 | C40: =SUMIF('Purchasing Analysis'!$C$9:$C$1048576,$B40,'Purchasing Analysis'!$I$9:$I$1048576) -> 0 | D40: =SUMIF('Purchasing Analysis'!$C$9:$C$1048576,$B40,'Purchasing Analysis'!$J$9:$J$1048576) -> 0 | E40: 0 | G40: =SUMIF('Purchasing Analysis'!$C$9:$C$1048576,$B40,'Purchasing Analysis'!$F$9:$F$1048576) -> 0 | H40: =SUMIF('Purchasing Analysis'!$C$9:$C$1048576,$B40,'Purchasing Analysis'!$J$9:$J$1048576) -> 0 | I40: 0 | S40: 2018-05-01
B41: Amount | C41: =SUM(C10:C40) -> 20600 | D41: =SUM(D10:D40) -> 20600 | E41: Paid | G41: =SUM(G10:G40) -> 45600 | H41: =SUM(H10:H40) -> 20600 | I41: -25000

Sheet Purchasing Analysis
D2: Daily Purchasing Analysis | J2: =SUM(F4-J4) -> 60600 | N2: =IF(O11=0,"",SEARCH(O11,$A9&" "&$B9&" "&$C9&" "&$D9&" "&$E9&" "&$F9&" "&$G9&" "&$H9&" "&$I9&" "&$J9&" "&$L9&" "&$M9&" ")) -> 
F3: Petty Cash | I3: Invoices Amount | J3: Invoices Paid | K3: Paid OR Not
F4: =SUM(F9:F1048576) -> 150600 | I4: =SUM(I9:I1048576) -> 104615 | J4: =SUM(J9:J1048576) -> 90000 | K4: =IF(AND(I4=0,J4=0),0,IF(I4=J4,"Paid",SUM(J4-I4))) -> -14615
G6: Search : | I6: =SUMIF($H$9:$K$1048576,$H$6,$I$9:$I$1048576) -> 0 | J6: =SUMIF($H$9:$K$1048576,$H$6,$J$9:$J$1048576) -> 0 | K6: =IF(AND(I6=0,J6=0),0,IF(I6=J6,"Paid",SUM(J6-I6))) -> 0
A8: # | B8: Rec. No. | C8: Date Of Purchase | D8: Suppliers | E8: Stores | F8: Petty Cash | G8: Invoice No. | H8: Descriptions | I8: Invoices Amount | J8: Invoices Paid | K8: Paid OR Not | L8: Name Of Buyer | M8: Remarks
A9: 1 | C9: 2018-04-01 | F9: 25000 | H9: سولار | I9: 5000 | J9: 5000 | K9: =IF(AND(I9=0,J9=0),0,IF(I9=J9,"Paid",SUM(J9-I9))) -> Paid | L9: Ibrahim | O9: =DATA!AA11 -> DONE
A10: =A9+1 -> 2 | C10: 2018-04-01 | E10: Engineering | F10: 10000 | H10: سولار | I10: 7800 | J10: 7800 | K10: =IF(AND(I10=0,J10=0),0,IF(I10=J10,"Paid",SUM(J10-I10))) -> Paid | O10: =DATA!AA12 -> HOLD
A11: =A10+1 -> 3 | C11: 2018-04-11 | D11: Mohamed Ezz | E11: Solar & Gas Store | F11: 10600 | G11: 100 | H11: سولار | I11: 7800 | J11: 7800 | K11: =IF(AND(I11=0,J11=0),0,IF(I11=J11,"Paid",SUM(J11-I11))) -> Paid | O11: =DATA!AA13 -> X-(Wrong)-X
A12: 4 | F12: 100000 | H12: سولار | I12: 7800 | J12: 7800 | K12: Paid
A13: 5 | F13: 5000 | H13: سولار | I13: 7800 | K13: -7800
A14: 6 | H14: سولار | I14: 7800 | J14: 7800 | K14: Paid
A15: 7 | H15: سولار | I15: 7800 | J15: 7800 | K15: Paid
A16: 8 | H16: سولار | I16: 7800 | J16: 6000 | K16: -1800
A17: 9 | I17: 40000 | J17: 40000 | K17: Paid
A18: 10 | I18: 5000 | K18: -5000
A19: 11 | I19: 15 | K19: -15
A20: =A19+1 -> 12 | K20: =IF(AND(I20=0,J20=0),0,IF(I20=J20,"Paid",SUM(J20-I20))) -> 0
A21: 13 | K21: 0
A22: 14 | K22: 0
A23: 15 | K23: 0
A24: 16 | K24: 0
A25: 17 | K25: 0
A26: 18 | K26: 0
A27: 19 | K27: 0
A28: 20 | K28: 0
A29: 21 | K29: 0
A30: 22 | K30: 0
A31: 23 | K31: 0
A32: 24 | K32: 0
A33: 25 | K33: 0
A34: 26 | K34: 0
A35: 27 | K35: 0
A36: 28 | K36: 0
A37: 29 | K37: 0
A38: 30 | K38: 0
A39: 31 | K39: 0
A40: 32 | K40: 0
A41: 33 | K41: 0
A42: 34 | K42: 0
A43: 35 | K43: 0
A44: 36 | K44: 0
A45: 37 | K45: 0
A46: 38 | K46: 0
A47: 39 | K47: 0
A48: 40 | K48: 0
A49: 41 | K49: 0
A50: 42 | K50: 0
A51: 43 | K51: 0
A52: 44 | K52: 0
A53: 45 | K53: 0
A54: 46 | K54: 0
A55: 47 | K55: 0
A56: 48 | K56: 0
A57: 49 | K57: 0
A58: 50 | K58: 0
A59: 51 | K59: 0
A60: 52 | K60: 0
A61: 53 | K61: 0
A62: 54 | K62: 0
A63: 55 | K63: 0
A64: 56 | K64: 0
A65: 57 | K65: 0
A66: 58 | K66: 0
A67: 59 | K67: 0
A68: 60 | K68: 0
A69: 61 | K69: 0
A70: 62 | K70: 0
A71: 63 | K71: 0
A72: 64 | K72: 0
A73: 65 | K73: 0
A74: 66 | K74: 0
A75: 67 | K75: 0
A76: 68 | K76: 0
A77: 69 | K77: 0
A78: =A77+1 -> 70 | K78: =IF(AND(I78=0,J78=0),0,IF(I78=J78,"Paid",SUM(J78-I78))) -> 0
A79: 71 | K79: 0
A80: 72 | K80: 0
A81: 73 | K81: 0
A82: 74 | K82: 0
A83: 75 | K83: 0
A84: 76 | K84: 0
A85: 77 | K85: 0
A86: 78 | K86: 0
A87: 79 | K87: 0
A88: 80 | K88: 0
A89: 81 | K89: 0
A90: 82 | K90: 0
A91: 83 | K91: 0
A92: 84 | K92: 0
A93: 85 | K93: 0
A94: 86 | K94: 0
A95: 87 | K95: 0
A96: 88 | K96: 0
A97: 89 | K97: 0
A98: 90 | K98: 0
A99: 91 | K99: 0
A100: 92 | K100: 0
A101: 93 | K101: 0
A102: 94 | K102: 0
A103: 95 | K103: 0
A104: 96 | K104: 0
A105: 97 | K105: 0
A106: 98 | K106: 0
A107: 99 | K107: 0
A108: 100 | K108: 0
A109: 101 | K109: 0
A110: 102 | K110: 0
A111: 103 | K111: 0
A112: 104 | K112: 0
A113: 105 | K113: 0
A114: 106 | K114: 0
A115: 107 | K115: 0
A116: 108 | K116: 0
A117: 109 | K117: 0
A118: 110 | K118: 0
A119: 111 | K119: 0
A120: 112 | K120: 0
A121: 113 | K121: 0
A122: 114 | K122: 0
A123: 115 | K123: 0
A124: 116 | K124: 0
A125: 117 | K125: 0
A126: 118 | K126: 0
A127: 119 | K127: 0
A128: 120 | K128: 0
A129: 121 | K129: 0
A130: 122 | K130: 0
A131: 123 | K131: 0
A132: 124 | K132: 0
A133: 125 | K133: 0
A134: 126 | K134: 0
A135: 127 | K135: 0
A136: 128 | K136: 0
A137: 129 | K137: 0
A138: 130 | K138: 0
A139: 131 | K139: 0
A140: 132 | K140: 0
A141: 133 | K141: 0
A142: =A141+1 -> 134 | K142: =IF(AND(I142=0,J142=0),0,IF(I142=J142,"Paid",SUM(J142-I142))) -> 0
A143: 135 | K143: 0
A144: 136 | K144: 0
A145: 137 | K145: 0
A146: 138 | K146: 0
A147: 139 | K147: 0
A148: 140 | K148: 0
A149: 141 | K149: 0
A150: 142 | K150: 0
A151: 143 | K151: 0
A152: 144 | K152: 0
A153: 145 | K153: 0
A154: 146 | K154: 0
A155: 147 | K155: 0
A156: 148 | K156: 0
A157: 149 | K157: 0
A158: 150 | K158: 0
A159: 151 | K159: 0
A160: 152 | K160: 0
A161: 153 | K161: 0
A162: 154 | K162: 0
A163: 155 | K163: 0
A164: 156 | K164: 0
A165: 157 | K165: 0
A166: 158 | K166: 0
A167: 159 | K167: 0
A168: 160 | K168: 0
A169: 161 | K169: 0
A170: 162 | K170: 0
A171: 163 | K171: 0
A172: 164 | K172: 0
A173: 165 | K173: 0
A174: 166 | K174: 0
A175: 167 | K175: 0
A176: 168 | K176: 0
A177: 169 | K177: 0
A178: 170 | K178: 0
A179: 171 | K179: 0
A180: 172 | K180: 0
A181: 173 | K181: 0
A182: 174 | K182: 0
A183: 175 | K183: 0
A184: 176 | K184: 0
A185: 177 | K185: 0
A186: 178 | K186: 0
A187: 179 | K187: 0
A188: 180 | K188: 0
A189: 181 | K189: 0
A190: 182 | K190: 0
A191: 183 | K191: 0
A192: 184 | K192: 0
A193: 185 | K193: 0
A194: 186 | K194: 0
A195: 187 | K195: 0
A196: 188 | K196: 0
A197: 189 | K197: 0
A198: 190 | K198: 0
A199: 191 | K199: 0
A200: 192 | K200: 0
A201: 193 | K201: 0
A202: 194 | K202: 0
A203: 195 | K203: 0
... 4797 more rows

Sheet (01) Replacement
A2: Replacement Purchase Expenses ( 01 ) استعاضة مصروفات المشتريات
F3: Of Month : | G3: =DATA!D3 -> 2018-04-01
C4: Date : | D4: 2018-04-01
A5: # | B5: Rec. No. | C5: Date | D5: Descriptions | E5: Invoices Amount | F5: Paid OR Not | G5: Remarks
A6: 1 | C6: =IFERROR(VLOOKUP($B6,'Purchasing Analysis'!$B$9:$M$1048576,2,FALSE),"") ->  | D6: =IFERROR(VLOOKUP($B6,'Purchasing Analysis'!$B$9:$M$1048576,7,FALSE),"") ->  | E6: =IFERROR(VLOOKUP($B6,'Purchasing Analysis'!$B$9:$M$1048576,8,FALSE),"") ->  | F6: =IFERROR(VLOOKUP($B6,'Purchasing Analysis'!$B$9:$M$1048576,10,FALSE),"") -> 
A7: =A6+1 -> 2 | C7: =IFERROR(VLOOKUP($B7,'Purchasing Analysis'!$B$9:$M$1048576,2,FALSE),"") ->  | D7: =IFERROR(VLOOKUP($B7,'Purchasing Analysis'!$B$9:$M$1048576,7,FALSE),"") ->  | E7: =IFERROR(VLOOKUP($B7,'Purchasing Analysis'!$B$9:$M$1048576,8,FALSE),"") ->  | F7: =IFERROR(VLOOKUP($B7,'Purchasing Analysis'!$B$9:$M$1048576,10,FALSE),"") -> 
A8: =A7+1 -> 3 | C8: =IFERROR(VLOOKUP($B8,'Purchasing Analysis'!$B$9:$M$1048576,2,FALSE),"") ->  | D8: =IFERROR(VLOOKUP($B8,'Purchasing Analysis'!$B$9:$M$1048576,7,FALSE),"") ->  | E8: =IFERROR(VLOOKUP($B8,'Purchasing Analysis'!$B$9:$M$1048576,8,FALSE),"") ->  | F8: =IFERROR(VLOOKUP($B8,'Purchasing Analysis'!$B$9:$M$1048576,10,FALSE),"") -> 
A9: 4 | C9: =IFERROR(VLOOKUP($B9,'Purchasing Analysis'!$B$9:$M$1048576,2,FALSE),"") ->  | D9: =IFERROR(VLOOKUP($B9,'Purchasing Analysis'!$B$9:$M$1048576,7,FALSE),"") ->  | E9: =IFERROR(VLOOKUP($B9,'Purchasing Analysis'!$B$9:$M$1048576,8,FALSE),"") ->  | F9: =IFERROR(VLOOKUP($B9,'Purchasing Analysis'!$B$9:$M$1048576,10,FALSE),"") -> 
A10: 5 | C10: =IFERROR(VLOOKUP($B10,'Purchasing Analysis'!$B$9:$M$1048576,2,FALSE),"") ->  | D10: =IFERROR(VLOOKUP($B10,'Purchasing Analysis'!$B$9:$M$1048576,7,FALSE),"") ->  | E10: =IFERROR(VLOOKUP($B10,'Purchasing Analysis'!$B$9:$M$1048576,8,FALSE),"") ->  | F10: =IFERROR(VLOOKUP($B10,'Purchasing Analysis'!$B$9:$M$1048576,10,FALSE),"") -> 
A11: 6 | C11: =IFERROR(VLOOKUP($B11,'Purchasing Analysis'!$B$9:$M$1048576,2,FALSE),"") ->  | D11: =IFERROR(VLOOKUP($B11,'Purchasing Analysis'!$B$9:$M$1048576,7,FALSE),"") ->  | E11: =IFERROR(VLOOKUP($B11,'Purchasing Analysis'!$B$9:$M$1048576,8,FALSE),"") ->  | F11: =IFERROR(VLOOKUP($B11,'Purchasing Analysis'!$B$9:$M$1048576,10,FALSE),"") -> 
A12: 7 | C12: =IFERROR(VLOOKUP($B12,'Purchasing Analysis'!$B$9:$M$1048576,2,FALSE),"") ->  | D12: =IFERROR(VLOOKUP($B12,'Purchasing Analysis'!$B$9:$M$1048576,7,FALSE),"") ->  | E12: =IFERROR(VLOOKUP($B12,'Purchasing Analysis'!$B$9:$M$1048576,8,FALSE),"") ->  | F12: =IFERROR(VLOOKUP($B12,'Purchasing Analysis'!$B$9:$M$1048576,10,FALSE),"") -> 
A13: 8 | C13: =IFERROR(VLOOKUP($B13,'Purchasing Analysis'!$B$9:$M$1048576,2,FALSE),"") ->  | D13: =IFERROR(VLOOKUP($B13,'Purchasing Analysis'!$B$9:$M$1048576,7,FALSE),"") ->  | E13: =IFERROR(VLOOKUP($B13,'Purchasing Analysis'!$B$9:$M$1048576,8,FALSE),"") ->  | F13: =IFERROR(VLOOKUP($B13,'Purchasing Analysis'!$B$9:$M$1048576,10,FALSE),"") -> 
A14: 9 | C14: =IFERROR(VLOOKUP($B14,'Purchasing Analysis'!$B$9:$M$1048576,2,FALSE),"") ->  | D14: =IFERROR(VLOOKUP($B14,'Purchasing Analysis'!$B$9:$M$1048576,7,FALSE),"") ->  | E14: =IFERROR(VLOOKUP($B14,'Purchasing Analysis'!$B$9:$M$1048576,8,FALSE),"") ->  | F14: =IFERROR(VLOOKUP($B14,'Purchasing Analysis'!$B$9:$M$1048576,10,FALSE),"") -> 
A15: 10 | C15: =IFERROR(VLOOKUP($B15,'Purchasing Analysis'!$B$9:$M$1048576,2,FALSE),"") ->  | D15: =IFERROR(VLOOKUP($B15,'Purchasing Analysis'!$B$9:$M$1048576,7,FALSE),"") ->  | E15: =IFERROR(VLOOKUP($B15,'Purchasing Analysis'!$B$9:$M$1048576,8,FALSE),"") ->  | F15: =IFERROR(VLOOKUP($B15,'Purchasing Analysis'!$B$9:$M$1048576,10,FALSE),"") -> 
A16: 11 | C16: =IFERROR(VLOOKUP($B16,'Purchasing Analysis'!$B$9:$M$1048576,2,FALSE),"") ->  | D16: =IFERROR(VLOOKUP($B16,'Purchasing Analysis'!$B$9:$M$1048576,7,FALSE),"") ->  | E16: =IFERROR(VLOOKUP($B16,'Purchasing Analysis'!$B$9:$M$1048576,8,FALSE),"") ->  | F16: =IFERROR(VLOOKUP($B16,'Purchasing Analysis'!$B$9:$M$1048576,10,FALSE),"") -> 
A17: 12 | C17: =IFERROR(VLOOKUP($B17,'Purchasing Analysis'!$B$9:$M$1048576,2,FALSE),"") ->  | D17: =IFERROR(VLOOKUP($B17,'Purchasing Analysis'!$B$9:$M$1048576,7,FALSE),"") ->  | E17: =IFERROR(VLOOKUP($B17,'Purchasing Analysis'!$B$9:$M$1048576,8,FALSE),"") ->  | F17: =IFERROR(VLOOKUP($B17,'Purchasing Analysis'!$B$9:$M$1048576,10,FALSE),"") -> 
A18: 13 | C18: =IFERROR(VLOOKUP($B18,'Purchasing Analysis'!$B$9:$M$1048576,2,FALSE),"") ->  | D18: =IFERROR(VLOOKUP($B18,'Purchasing Analysis'!$B$9:$M$1048576,7,FALSE),"") ->  | E18: =IFERROR(VLOOKUP($B18,'Purchasing Analysis'!$B$9:$M$1048576,8,FALSE),"") ->  | F18: =IFERROR(VLOOKUP($B18,'Purchasing Analysis'!$B$9:$M$1048576,10,FALSE),"") -> 
A19: 14 | C19: =IFERROR(VLOOKUP($B19,'Purchasing Analysis'!$B$9:$M$1048576,2,FALSE),"") ->  | D19: =IFERROR(VLOOKUP($B19,'Purchasing Analysis'!$B$9:$M$1048576,7,FALSE),"") ->  | E19: =IFERROR(VLOOKUP($B19,'Purchasing Analysis'!$B$9:$M$1048576,8,FALSE),"") ->  | F19: =IFERROR(VLOOKUP($B19,'Purchasing Analysis'!$B$9:$M$1048576,10,FALSE),"") -> 
A20: 15 | C20: =IFERROR(VLOOKUP($B20,'Purchasing Analysis'!$B$9:$M$1048576,2,FALSE),"") ->  | D20: =IFERROR(VLOOKUP($B20,'Purchasing Analysis'!$B$9:$M$1048576,7,FALSE),"") ->  | E20: =IFERROR(VLOOKUP($B20,'Purchasing Analysis'!$B$9:$M$1048576,8,FALSE),"") ->  | F20: =IFERROR(VLOOKUP($B20,'Purchasing Analysis'!$B$9:$M$1048576,10,FALSE),"") -> 
A21: 16 | C21: =IFERROR(VLOOKUP($B21,'Purchasing Analysis'!$B$9:$M$1048576,2,FALSE),"") ->  | D21: =IFERROR(VLOOKUP($B21,'Purchasing Analysis'!$B$9:$M$1048576,7,FALSE),"") ->  | E21: =IFERROR(VLOOKUP($B21,'Purchasing Analysis'!$B$9:$M$1048576,8,FALSE),"") ->  | F21: =IFERROR(VLOOKUP($B21,'Purchasing Analysis'!$B$9:$M$1048576,10,FALSE),"") -> 
A22: 17 | C22: =IFERROR(VLOOKUP($B22,'Purchasing Analysis'!$B$9:$M$1048576,2,FALSE),"") ->  | D22: =IFERROR(VLOOKUP($B22,'Purchasing Analysis'!$B$9:$M$1048576,7,FALSE),"") ->  | E22: =IFERROR(VLOOKUP($B22,'Purchasing Analysis'!$B$9:$M$1048576,8,FALSE),"") ->  | F22: =IFERROR(VLOOKUP($B22,'Purchasing Analysis'!$B$9:$M$1048576,10,FALSE),"") -> 
A23: 18 | C23: =IFERROR(VLOOKUP($B23,'Purchasing Analysis'!$B$9:$M$1048576,2,FALSE),"") ->  | D23: =IFERROR(VLOOKUP($B23,'Purchasing Analysis'!$B$9:$M$1048576,7,FALSE),"") ->  | E23: =IFERROR(VLOOKUP($B23,'Purchasing Analysis'!$B$9:$M$1048576,8,FALSE),"") ->  | F23: =IFERROR(VLOOKUP($B23,'Purchasing Analysis'!$B$9:$M$1048576,10,FALSE),"") -> 
A24: =A23+1 -> 19 | C24: =IFERROR(VLOOKUP($B24,'Purchasing Analysis'!$B$9:$M$1048576,2,FALSE),"") ->  | D24: =IFERROR(VLOOKUP($B24,'Purchasing Analysis'!$B$9:$M$1048576,7,FALSE),"") ->  | E24: =IFERROR(VLOOKUP($B24,'Purchasing Analysis'!$B$9:$M$1048576,8,FALSE),"") ->  | F24: =IFERROR(VLOOKUP($B24,'Purchasing Analysis'!$B$9:$M$1048576,10,FALSE),"") -> 
A25: 20 | C25: =IFERROR(VLOOKUP($B25,'Purchasing Analysis'!$B$9:$M$1048576,2,FALSE),"") ->  | D25: =IFERROR(VLOOKUP($B25,'Purchasing Analysis'!$B$9:$M$1048576,7,FALSE),"") ->  | E25: =IFERROR(VLOOKUP($B25,'Purchasing Analysis'!$B$9:$M$1048576,8,FALSE),"") ->  | F25: =IFERROR(VLOOKUP($B25,'Purchasing Analysis'!$B$9:$M$1048576,10,FALSE),"") -> 
A26: 21 | C26: =IFERROR(VLOOKUP($B26,'Purchasing Analysis'!$B$9:$M$1048576,2,FALSE),"") ->  | D26: =IFERROR(VLOOKUP($B26,'Purchasing Analysis'!$B$9:$M$1048576,7,FALSE),"") ->  | E26: =IFERROR(VLOOKUP($B26,'Purchasing Analysis'!$B$9:$M$1048576,8,FALSE),"") ->  | F26: =IFERROR(VLOOKUP($B26,'Purchasing Analysis'!$B$9:$M$1048576,10,FALSE),"") -> 
A27: 22 | C27: =IFERROR(VLOOKUP($B27,'Purchasing Analysis'!$B$9:$M$1048576,2,FALSE),"") ->  | D27: =IFERROR(VLOOKUP($B27,'Purchasing Analysis'!$B$9:$M$1048576,7,FALSE),"") ->  | E27: =IFERROR(VLOOKUP($B27,'Purchasing Analysis'!$B$9:$M$1048576,8,FALSE),"") ->  | F27: =IFERROR(VLOOKUP($B27,'Purchasing Analysis'!$B$9:$M$1048576,10,FALSE),"") -> 
A28: 23 | C28: =IFERROR(VLOOKUP($B28,'Purchasing Analysis'!$B$9:$M$1048576,2,FALSE),"") ->  | D28: =IFERROR(VLOOKUP($B28,'Purchasing Analysis'!$B$9:$M$1048576,7,FALSE),"") ->  | E28: =IFERROR(VLOOKUP($B28,'Purchasing Analysis'!$B$9:$M$1048576,8,FALSE),"") ->  | F28: =IFERROR(VLOOKUP($B28,'Purchasing Analysis'!$B$9:$M$1048576,10,FALSE),"") -> 
A29: 24 | C29: =IFERROR(VLOOKUP($B29,'Purchasing Analysis'!$B$9:$M$1048576,2,FALSE),"") ->  | D29: =IFERROR(VLOOKUP($B29,'Purchasing Analysis'!$B$9:$M$1048576,7,FALSE),"") ->  | E29: =IFERROR(VLOOKUP($B29,'Purchasing Analysis'!$B$9:$M$1048576,8,FALSE),"") ->  | F29: =IFERROR(VLOOKUP($B29,'Purchasing Analysis'!$B$9:$M$1048576,10,FALSE),"") -> 
A30: 25 | C30: =IFERROR(VLOOKUP($B30,'Purchasing Analysis'!$B$9:$M$1048576,2,FALSE),"") ->  | D30: =IFERROR(VLOOKUP($B30,'Purchasing Analysis'!$B$9:$M$1048576,7,FALSE),"") ->  | E30: =IFERROR(VLOOKUP($B30,'Purchasing Analysis'!$B$9:$M$1048576,8,FALSE),"") ->  | F30: =IFERROR(VLOOKUP($B30,'Purchasing Analysis'!$B$9:$M$1048576,10,FALSE),"") -> 
A31: 26 | C31: =IFERROR(VLOOKUP($B31,'Purchasing Analysis'!$B$9:$M$1048576,2,FALSE),"") ->  | D31: =IFERROR(VLOOKUP($B31,'Purchasing Analysis'!$B$9:$M$1048576,7,FALSE),"") ->  | E31: =IFERROR(VLOOKUP($B31,'Purchasing Analysis'!$B$9:$M$1048576,8,FALSE),"") ->  | F31: =IFERROR(VLOOKUP($B31,'Purchasing Analysis'!$B$9:$M$1048576,10,FALSE),"") -> 
A32: 27 | C32: =IFERROR(VLOOKUP($B32,'Purchasing Analysis'!$B$9:$M$1048576,2,FALSE),"") ->  | D32: =IFERROR(VLOOKUP($B32,'Purchasing Analysis'!$B$9:$M$1048576,7,FALSE),"") ->  | E32: =IFERROR(VLOOKUP($B32,'Purchasing Analysis'!$B$9:$M$1048576,8,FALSE),"") ->  | F32: =IFERROR(VLOOKUP($B32,'Purchasing Analysis'!$B$9:$M$1048576,10,FALSE),"") -> 
A33: 28 | C33: =IFERROR(VLOOKUP($B33,'Purchasing Analysis'!$B$9:$M$1048576,2,FALSE),"") ->  | D33: =IFERROR(VLOOKUP($B33,'Purchasing Analysis'!$B$9:$M$1048576,7,FALSE),"") ->  | E33: =IFERROR(VLOOKUP($B33,'Purchasing Analysis'!$B$9:$M$1048576,8,FALSE),"") ->  | F33: =IFERROR(VLOOKUP($B33,'Purchasing Analysis'!$B$9:$M$1048576,10,FALSE),"") -> 
A34: 29 | C34: =IFERROR(VLOOKUP($B34,'Purchasing Analysis'!$B$9:$M$1048576,2,FALSE),"") ->  | D34: =IFERROR(VLOOKUP($B34,'Purchasing Analysis'!$B$9:$M$1048576,7,FALSE),"") ->  | E34: =IFERROR(VLOOKUP($B34,'Purchasing Analysis'!$B$9:$M$1048576,8,FALSE),"") ->  | F34: =IFERROR(VLOOKUP($B34,'Purchasing Analysis'!$B$9:$M$1048576,10,FALSE),"") -> 
A35: 30 | C35: =IFERROR(VLOOKUP($B35,'Purchasing Analysis'!$B$9:$M$1048576,2,FALSE),"") ->  | D35: =IFERROR(VLOOKUP($B35,'Purchasing Analysis'!$B$9:$M$1048576,7,FALSE),"") ->  | E35: =IFERROR(VLOOKUP($B35,'Purchasing Analysis'!$B$9:$M$1048576,8,FALSE),"") ->  | F35: =IFERROR(VLOOKUP($B35,'Purchasing Analysis'!$B$9:$M$1048576,10,FALSE),"") -> 
A36: 31 | C36: =IFERROR(VLOOKUP($B36,'Purchasing Analysis'!$B$9:$M$1048576,2,FALSE),"") ->  | D36: =IFERROR(VLOOKUP($B36,'Purchasing Analysis'!$B$9:$M$1048576,7,FALSE),"") ->  | E36: =IFERROR(VLOOKUP($B36,'Purchasing Analysis'!$B$9:$M$1048576,8,FALSE),"") ->  | F36: =IFERROR(VLOOKUP($B36,'Purchasing Analysis'!$B$9:$M$1048576,10,FALSE),"") -> 
A37: 32 | C37: =IFERROR(VLOOKUP($B37,'Purchasing Analysis'!$B$9:$M$1048576,2,FALSE),"") ->  | D37: =IFERROR(VLOOKUP($B37,'Purchasing Analysis'!$B$9:$M$1048576,7,FALSE),"") ->  | E37: =IFERROR(VLOOKUP($B37,'Purchasing Analysis'!$B$9:$M$1048576,8,FALSE),"") ->  | F37: =IFERROR(VLOOKUP($B37,'Purchasing Analysis'!$B$9:$M$1048576,10,FALSE),"") -> 
A38: 33 | C38: =IFERROR(VLOOKUP($B38,'Purchasing Analysis'!$B$9:$M$1048576,2,FALSE),"") ->  | D38: =IFERROR(VLOOKUP($B38,'Purchasing Analysis'!$B$9:$M$1048576,7,FALSE),"") ->  | E38: =IFERROR(VLOOKUP($B38,'Purchasing Analysis'!$B$9:$M$1048576,8,FALSE),"") ->  | F38: =IFERROR(VLOOKUP($B38,'Purchasing Analysis'!$B$9:$M$1048576,10,FALSE),"") -> 
A39: 34 | C39: =IFERROR(VLOOKUP($B39,'Purchasing Analysis'!$B$9:$M$1048576,2,FALSE),"") ->  | D39: =IFERROR(VLOOKUP($B39,'Purchasing Analysis'!$B$9:$M$1048576,7,FALSE),"") ->  | E39: =IFERROR(VLOOKUP($B39,'Purchasing Analysis'!$B$9:$M$1048576,8,FALSE),"") ->  | F39: =IFERROR(VLOOKUP($B39,'Purchasing Analysis'!$B$9:$M$1048576,10,FALSE),"") -> 
A40: 35 | C40: =IFERROR(VLOOKUP($B40,'Purchasing Analysis'!$B$9:$M$1048576,2,FALSE),"") ->  | D40: =IFERROR(VLOOKUP($B40,'Purchasing Analysis'!$B$9:$M$1048576,7,FALSE),"") ->  | E40: =IFERROR(VLOOKUP($B40,'Purchasing Analysis'!$B$9:$M$1048576,8,FALSE),"") ->  | F40: =IFERROR(VLOOKUP($B40,'Purchasing Analysis'!$B$9:$M$1048576,10,FALSE),"") -> 
A41: 36 | C41: =IFERROR(VLOOKUP($B41,'Purchasing Analysis'!$B$9:$M$1048576,2,FALSE),"") ->  | D41: =IFERROR(VLOOKUP($B41,'Purchasing Analysis'!$B$9:$M$1048576,7,FALSE),"") ->  | E41: =IFERROR(VLOOKUP($B41,'Purchasing Analysis'!$B$9:$M$1048576,8,FALSE),"") ->  | F41: =IFERROR(VLOOKUP($B41,'Purchasing Analysis'!$B$9:$M$1048576,10,FALSE),"") -> 
A42: 37 | C42: =IFERROR(VLOOKUP($B42,'Purchasing Analysis'!$B$9:$M$1048576,2,FALSE),"") ->  | D42: =IFERROR(VLOOKUP($B42,'Purchasing Analysis'!$B$9:$M$1048576,7,FALSE),"") ->  | E42: =IFERROR(VLOOKUP($B42,'Purchasing Analysis'!$B$9:$M$1048576,8,FALSE),"") ->  | F42: =IFERROR(VLOOKUP($B42,'Purchasing Analysis'!$B$9:$M$1048576,10,FALSE),"") -> 
A43: 38 | C43: =IFERROR(VLOOKUP($B43,'Purchasing Analysis'!$B$9:$M$1048576,2,FALSE),"") ->  | D43: =IFERROR(VLOOKUP($B43,'Purchasing Analysis'!$B$9:$M$1048576,7,FALSE),"") ->  | E43: =IFERROR(VLOOKUP($B43,'Purchasing Analysis'!$B$9:$M$1048576,8,FALSE),"") ->  | F43: =IFERROR(VLOOKUP($B43,'Purchasing Analysis'!$B$9:$M$1048576,10,FALSE),"") -> 
A44: 39 | C44: =IFERROR(VLOOKUP($B44,'Purchasing Analysis'!$B$9:$M$1048576,2,FALSE),"") ->  | D44: =IFERROR(VLOOKUP($B44,'Purchasing Analysis'!$B$9:$M$1048576,7,FALSE),"") ->  | E44: =IFERROR(VLOOKUP($B44,'Purchasing Analysis'!$B$9:$M$1048576,8,FALSE),"") ->  | F44: =IFERROR(VLOOKUP($B44,'Purchasing Analysis'!$B$9:$M$1048576,10,FALSE),"") -> 
A45: 40 | C45: =IFERROR(VLOOKUP($B45,'Purchasing Analysis'!$B$9:$M$1048576,2,FALSE),"") ->  | D45: =IFERROR(VLOOKUP($B45,'Purchasing Analysis'!$B$9:$M$1048576,7,FALSE),"") ->  | E45: =IFERROR(VLOOKUP($B45,'Purchasing Analysis'!$B$9:$M$1048576,8,FALSE),"") ->  | F45: =IFERROR(VLOOKUP($B45,'Purchasing Analysis'!$B$9:$M$1048576,10,FALSE),"") -> 
D46: Amount | E46: =SUM(E6:E45) -> 0
B48: Purchasing Manager ………. | F48: Controller ……….
D50: Accountant ……….
